[Event "*** Titled Tuesday 3|2 Blitz"]
[Site "Chess.com"]
[Date "2016.06.07"]
[Round "8"]
[White "kereswasbest"]
[Black "WanderingPuppet"]
[Result "0-1"]
[WhiteElo "2116"]
[BlackElo "2270"]
[TimeControl "180+2"]
[EndTime "12:36:24 PDT"]
[Termination "WanderingPuppet won by resignation"]

1. d4 {[%clk 0:03:01.9]} 1... Nf6 {[%clk 0:03:01.6]} 2. c4 {[%clk 0:03:02.4]}
2... g6 {[%clk 0:03:03.3]} 3. Nc3 {[%clk 0:03:03.2]} 3... Bg7 {[%clk 0:03:05]}
4. e4 {[%clk 0:03:04.9]} 4... d6 {[%clk 0:03:06.6]} 5. Nf3 {[%clk 0:03:05]} 5...
O-O {[%clk 0:03:08.3]} 6. Be2 {[%clk 0:03:06.6]} 6... Nbd7 {[%clk 0:03:07.9]} 7.
O-O {[%clk 0:03:07.4]} 7... e5 {[%clk 0:03:09.6]} 8. d5 {[%clk 0:03:06.4]} 8...
a5 {[%clk 0:03:04]} 9. Ne1 {[%clk 0:03:06.2]} 9... Ne8 {[%clk 0:03:05.3]} 10.
Nd3 {[%clk 0:03:06.2]} 10... f5 {[%clk 0:03:06.3]} 11. f4 {[%clk 0:03:05.2]}
11... exf4 {[%clk 0:03:04.2]} 12. exf5 {[%clk 0:03:00.8]} 12... gxf5 {[%clk
0:03:01.9]} 13. Nxf4 {[%clk 0:02:59.2]} 13... Ne5 {[%clk 0:03:01.9]} 14. Ne6
{[%clk 0:02:55.8]} 14... Bxe6 {[%clk 0:03:02.3]} 15. dxe6 {[%clk 0:02:57]} 15...
c6 {[%clk 0:03:03.6]} 16. Bh5 {[%clk 0:02:38.5]} 16... Nc7 {[%clk 0:02:59]} 17.
Qb3 {[%clk 0:02:23.7]} 17... Nxe6 {[%clk 0:02:52.6]} 18. Be3 {[%clk 0:02:07.2]}
18... f4 {[%clk 0:02:42.7]} 19. Bb6 {[%clk 0:02:06.5]} 19... Qg5 {[%clk
0:02:39.9]} 20. c5 {[%clk 0:01:51.8]} 20... d5 {[%clk 0:02:33.8]} 21. Nxd5
{[%clk 0:01:52.6]} 21... Nd4 {[%clk 0:02:06.5]} 22. Nf6+ {[%clk 0:01:17]} 22...
Kh8 {[%clk 0:02:06]} 23. Ne4 {[%clk 0:01:05.8]} 23... Qxh5 {[%clk 0:02:01.5]}
24. Qa4 {[%clk 0:01:01.9]} 24... Qg6 {[%clk 0:01:57.3]} 25. Nd6 {[%clk
0:00:56.4]} 25... f3 {[%clk 0:01:50.8]} 26. g3 {[%clk 0:00:57.4]} 26... f2+
{[%clk 0:01:36.6]} 27. Kg2 {[%clk 0:00:55.7]} 27... Ng4 {[%clk 0:01:27.6]} 0-1

[Event "*** Titled Tuesday 3|2 Blitz"]
[Site "Chess.com"]
[Date "2016.06.07"]
[Round "8"]
[White "jcibarra"]
[Black "AndreyOstrovskiy"]
[Result "0-1"]
[WhiteElo "2624"]
[BlackElo "2455"]
[TimeControl "180+2"]
[EndTime "12:36:48 PDT"]
[Termination "AndreyOstrovskiy won by resignation"]

1. e4 {[%clk 0:03:01.9]} 1... e5 {[%clk 0:03:00.8]} 2. Nf3 {[%clk 0:03:02.5]}
2... Nc6 {[%clk 0:03:01.9]} 3. Nc3 {[%clk 0:03:02]} 3... Nf6 {[%clk 0:03:02.1]}
4. d4 {[%clk 0:02:59.4]} 4... exd4 {[%clk 0:03:04]} 5. Nxd4 {[%clk 0:03:01.3]}
5... Bb4 {[%clk 0:03:04.6]} 6. Nxc6 {[%clk 0:03:02.8]} 6... bxc6 {[%clk
0:03:05.7]} 7. Bd3 {[%clk 0:03:04.4]} 7... d5 {[%clk 0:03:05.7]} 8. exd5 {[%clk
0:03:06.3]} 8... cxd5 {[%clk 0:03:07.3]} 9. Qe2+ {[%clk 0:03:07.6]} 9... Be7
{[%clk 0:02:35.4]} 10. Bg5 {[%clk 0:03:07.5]} 10... O-O {[%clk 0:02:32.4]} 11.
O-O-O {[%clk 0:03:09]} 11... c6 {[%clk 0:02:30.9]} 12. Rhe1 {[%clk 0:03:10.2]}
12... Bd6 {[%clk 0:02:07.8]} 13. h3 {[%clk 0:03:10.6]} 13... h6 {[%clk
0:02:07.3]} 14. Bh4 {[%clk 0:03:10.2]} 14... Rb8 {[%clk 0:02:04.7]} 15. Qf3
{[%clk 0:03:08.1]} 15... Rb4 {[%clk 0:01:38.3]} 16. Bxf6 {[%clk 0:03:03]} 16...
Qxf6 {[%clk 0:01:39.4]} 17. Qxf6 {[%clk 0:03:04]} 17... gxf6 {[%clk 0:01:41.3]}
18. Ne2 {[%clk 0:03:04.1]} 18... c5 {[%clk 0:01:36.2]} 19. c3 {[%clk 0:03:04.5]}
19... Ra4 {[%clk 0:01:30.7]} 20. Bc2 {[%clk 0:02:56]} 20... Rxa2 {[%clk
0:01:30]} 21. Rxd5 {[%clk 0:02:57.5]} 21... Bc7 {[%clk 0:01:15.4]} 22. Kb1
{[%clk 0:02:51.9]} 22... Ra5 {[%clk 0:01:13.5]} 23. Rh5 {[%clk 0:02:51.3]} 23...
Re8 {[%clk 0:01:05.2]} 24. b4 {[%clk 0:02:38.6]} 24... cxb4 {[%clk 0:01:05.2]}
25. Rxa5 {[%clk 0:02:07.3]} 25... Bxa5 {[%clk 0:01:05.7]} 26. Ba4 {[%clk
0:02:09]} 26... Re7 {[%clk 0:00:58.9]} 27. cxb4 {[%clk 0:02:03.9]} 27... Bxb4
{[%clk 0:00:56.4]} 28. Rc1 {[%clk 0:02:05]} 28... Bf5+ {[%clk 0:00:49]} 29. Bc2
{[%clk 0:02:06.1]} 29... Rxe2 {[%clk 0:00:23.1]} 30. Bxf5 {[%clk 0:02:05.9]}
30... Rxf2 {[%clk 0:00:24.4]} 31. Rc2 {[%clk 0:02:07.3]} 31... Rxf5 {[%clk
0:00:24.4]} 32. Rc4 {[%clk 0:02:03.3]} 32... a5 {[%clk 0:00:25.3]} 33. Kc2
{[%clk 0:02:04]} 33... Rf2+ {[%clk 0:00:25.6]} 0-1

[Event "*** Titled Tuesday 3|2 Blitz"]
[Site "Chess.com"]
[Date "2016.06.07"]
[Round "8"]
[White "Wolverine_master"]
[Black "Rating-Schmating"]
[Result "0-1"]
[WhiteElo "2091"]
[BlackElo "2190"]
[TimeControl "180+2"]
[EndTime "12:36:51 PDT"]
[Termination "Rating-Schmating won by checkmate"]

1. e4 {[%clk 0:02:09.1]} 1... e6 {[%clk 0:03:01.9]} 2. d4 {[%clk 0:02:05.3]}
2... d5 {[%clk 0:03:02.1]} 3. Nd2 {[%clk 0:02:06.2]} 3... a6 {[%clk 0:03:02.3]}
4. Bd3 {[%clk 0:02:03]} 4... c5 {[%clk 0:03:01.8]} 5. c3 {[%clk 0:02:01.1]} 5...
Nf6 {[%clk 0:03:02.1]} 6. e5 {[%clk 0:02:02]} 6... Nfd7 {[%clk 0:03:03.4]} 7.
Ne2 {[%clk 0:02:02.8]} 7... Nc6 {[%clk 0:03:04.7]} 8. O-O {[%clk 0:02:00.8]}
8... Qb6 {[%clk 0:02:56.1]} 9. Nf3 {[%clk 0:01:17.6]} 9... Be7 {[%clk
0:02:53.5]} 10. Rb1 {[%clk 0:01:16.8]} 10... cxd4 {[%clk 0:02:48.8]} 11. cxd4
{[%clk 0:01:16]} 11... Nb4 {[%clk 0:02:48.7]} 12. a3 {[%clk 0:01:14.7]} 12...
Nxd3 {[%clk 0:02:49.5]} 13. Qxd3 {[%clk 0:01:16.2]} 13... Nf8 {[%clk 0:02:48.4]}
14. b4 {[%clk 0:01:11.1]} 14... Bd7 {[%clk 0:02:48.1]} 15. Bg5 {[%clk
0:01:10.4]} 15... Bb5 {[%clk 0:02:46.4]} 16. Qd2 {[%clk 0:01:06.6]} 16... Bxg5
{[%clk 0:02:45]} 17. Nxg5 {[%clk 0:01:03.3]} 17... Bxe2 {[%clk 0:02:45.3]} 18.
Qxe2 {[%clk 0:01:04.2]} 18... Qxd4 {[%clk 0:02:46.3]} 19. Rfd1 {[%clk 0:00:59]}
19... Qf4 {[%clk 0:02:44.4]} 20. Nf3 {[%clk 0:00:53.9]} 20... Nd7 {[%clk
0:02:42.3]} 21. Rbc1 {[%clk 0:00:52.1]} 21... O-O {[%clk 0:02:37.2]} 22. Rc7
{[%clk 0:00:52.8]} 22... Nb6 {[%clk 0:02:35.2]} 23. Rxb7 {[%clk 0:00:46.5]}
23... Nc4 {[%clk 0:02:36.3]} 24. a4 {[%clk 0:00:45.7]} 24... Rfb8 {[%clk
0:02:34.5]} 25. Rxb8+ {[%clk 0:00:36.5]} 25... Rxb8 {[%clk 0:02:36.4]} 26. Rb1
{[%clk 0:00:25]} 26... g5 {[%clk 0:02:21.9]} 27. h3 {[%clk 0:00:15.4]} 27... h5
{[%clk 0:02:19.3]} 28. Ne1 {[%clk 0:00:12.7]} 28... g4 {[%clk 0:02:13]} 29. hxg4
{[%clk 0:00:13]} 29... hxg4 {[%clk 0:02:14.5]} 30. Nd3 {[%clk 0:00:14.2]} 30...
Qf5 {[%clk 0:02:11.5]} 31. f3 {[%clk 0:00:11.3]} 31... g3 {[%clk 0:02:11.9]} 32.
f4 {[%clk 0:00:10.5]} 32... Qh7 {[%clk 0:02:03.8]} 33. Rf1 {[%clk 0:00:10.9]}
33... Qh2# {[%clk 0:02:03.2]} 0-1

[Event "*** Titled Tuesday 3|2 Blitz"]
[Site "Chess.com"]
[Date "2016.06.07"]
[Round "8"]
[White "SloLev"]
[Black "jeaston1"]
[Result "1-0"]
[WhiteElo "2102"]
[BlackElo "2021"]
[TimeControl "180+2"]
[EndTime "12:37:24 PDT"]
[Termination "SloLev won by resignation"]

1. d4 {[%clk 0:03:00.9]} 1... d5 {[%clk 0:03:00.8]} 2. Nf3 {[%clk 0:03:00.7]}
2... Nf6 {[%clk 0:03:01.5]} 3. e3 {[%clk 0:03:01]} 3... e6 {[%clk 0:03:02.2]} 4.
Be2 {[%clk 0:03:02.1]} 4... Be7 {[%clk 0:02:58.4]} 5. O-O {[%clk 0:03:04]} 5...
O-O {[%clk 0:02:59.5]} 6. Nbd2 {[%clk 0:03:03.4]} 6... c5 {[%clk 0:03:00.7]} 7.
b3 {[%clk 0:03:04.6]} 7... Nc6 {[%clk 0:03:02]} 8. Bb2 {[%clk 0:03:05.6]} 8...
b6 {[%clk 0:02:46.2]} 9. a4 {[%clk 0:03:04.6]} 9... Bb7 {[%clk 0:02:47.5]} 10.
Ne5 {[%clk 0:03:03.1]} 10... Nxe5 {[%clk 0:02:46.5]} 11. dxe5 {[%clk 0:03:05]}
11... Ne4 {[%clk 0:02:47.2]} 12. Nxe4 {[%clk 0:03:05.2]} 12... dxe4 {[%clk
0:02:48.3]} 13. a5 {[%clk 0:03:05.3]} 13... Qc7 {[%clk 0:02:42.7]} 14. a6 {[%clk
0:03:04.2]} 14... Bc6 {[%clk 0:02:42.2]} 15. c4 {[%clk 0:03:02.2]} 15... Rad8
{[%clk 0:02:42.4]} 16. Qc2 {[%clk 0:03:03.3]} 16... Rd7 {[%clk 0:02:37.1]} 17.
Rfd1 {[%clk 0:03:04.1]} 17... Rfd8 {[%clk 0:02:36.2]} 18. g3 {[%clk 0:03:01.1]}
18... Bf8 {[%clk 0:02:36.5]} 19. Rxd7 {[%clk 0:02:57.6]} 19... Rxd7 {[%clk
0:02:37.1]} 20. Rd1 {[%clk 0:02:58.5]} 20... g6 {[%clk 0:02:37.5]} 21. Rxd7
{[%clk 0:02:57.5]} 21... Qxd7 {[%clk 0:02:38.5]} 22. Bf1 {[%clk 0:02:58.2]}
22... Bg7 {[%clk 0:02:38]} 23. h4 {[%clk 0:02:57.2]} 23... Qc7 {[%clk 0:02:21]}
24. Qc3 {[%clk 0:02:56.4]} 24... Qc8 {[%clk 0:02:14]} 25. Qd2 {[%clk 0:02:56.4]}
25... Qd7 {[%clk 0:02:09.5]} 26. Qc1 {[%clk 0:02:49.3]} 26... Bf8 {[%clk
0:01:49.6]} 27. Bc3 {[%clk 0:02:48.6]} 27... Qc8 {[%clk 0:01:48.3]} 28. Qa1
{[%clk 0:02:48.2]} 28... Qd7 {[%clk 0:01:40.8]} 29. Be2 {[%clk 0:02:48.1]} 29...
Bg7 {[%clk 0:01:39.5]} 30. b4 {[%clk 0:02:42.8]} 30... cxb4 {[%clk 0:01:38.1]}
31. Bxb4 {[%clk 0:02:43.9]} 31... b5 {[%clk 0:01:33.5]} 32. cxb5 {[%clk
0:02:33.5]} 32... Bxb5 {[%clk 0:01:34]} 33. Bxb5 {[%clk 0:02:33.7]} 33... Qxb5
{[%clk 0:01:34.5]} 34. Qd4 {[%clk 0:02:28.5]} 34... Qb8 {[%clk 0:01:14.1]} 35.
Bd6 {[%clk 0:02:27.2]} 35... Qa8 {[%clk 0:01:03.1]} 36. Qb4 {[%clk 0:02:25]}
36... Bf8 {[%clk 0:00:44.4]} 37. Qb7 {[%clk 0:02:16.4]} 37... Qd8 {[%clk
0:00:42.9]} 38. Qxa7 {[%clk 0:02:04.7]} 38... Bxd6 {[%clk 0:00:43.4]} 39. Qd4
{[%clk 0:01:59.4]} 39... Qc8 {[%clk 0:00:25]} 40. exd6 {[%clk 0:01:56.1]} 40...
Qxa6 {[%clk 0:00:25.1]} 41. d7 {[%clk 0:01:52.5]} 1-0

[Event "*** Titled Tuesday 3|2 Blitz"]
[Site "Chess.com"]
[Date "2016.06.07"]
[Round "8"]
[White "norwaytoadog"]
[Black "Abdodi"]
[Result "1-0"]
[WhiteElo "2034"]
[BlackElo "1976"]
[TimeControl "180+2"]
[EndTime "12:37:24 PDT"]
[Termination "norwaytoadog won by resignation"]

1. e4 {[%clk 0:03:01.9]} 1... c6 {[%clk 0:02:58.5]} 2. d4 {[%clk 0:03:01.8]}
2... d5 {[%clk 0:02:57.6]} 3. Nc3 {[%clk 0:03:02.5]} 3... dxe4 {[%clk
0:02:57.8]} 4. Nxe4 {[%clk 0:03:02.8]} 4... Nd7 {[%clk 0:02:56.7]} 5. Ng5 {[%clk
0:03:03.1]} 5... e6 {[%clk 0:02:47.5]} 6. Bd3 {[%clk 0:03:00.1]} 6... Ngf6
{[%clk 0:02:22.9]} 7. N1f3 {[%clk 0:03:00.3]} 7... Bd6 {[%clk 0:02:14.4]} 8. O-O
{[%clk 0:02:58.3]} 8... h6 {[%clk 0:02:13.5]} 9. Ne4 {[%clk 0:02:47.1]} 9...
Nxe4 {[%clk 0:02:13.6]} 10. Bxe4 {[%clk 0:02:47.7]} 10... Nf6 {[%clk 0:02:14.1]}
11. Bd3 {[%clk 0:02:48.6]} 11... b6 {[%clk 0:02:14.4]} 12. Qe2 {[%clk
0:02:47.8]} 12... Bb7 {[%clk 0:02:13.8]} 13. c4 {[%clk 0:02:48.2]} 13... Qc7
{[%clk 0:02:11.9]} 14. Ne5 {[%clk 0:02:44.1]} 14... O-O-O {[%clk 0:01:58.9]} 15.
Bf4 {[%clk 0:02:38.2]} 15... g5 {[%clk 0:01:55.8]} 16. Bg3 {[%clk 0:02:38.9]}
16... h5 {[%clk 0:01:52.6]} 17. c5 {[%clk 0:02:21.4]} 17... bxc5 {[%clk
0:01:44.2]} 18. dxc5 {[%clk 0:02:19.8]} 18... Bxe5 {[%clk 0:01:43.1]} 19. Bxe5
{[%clk 0:02:19.4]} 19... Qe7 {[%clk 0:01:43.9]} 20. Qf3 {[%clk 0:02:03.6]} 20...
Rh6 {[%clk 0:01:33.4]} 21. Rfd1 {[%clk 0:01:56.3]} 21... Ne8 {[%clk 0:01:28]}
22. Be4 {[%clk 0:01:36.5]} 22... f6 {[%clk 0:01:12.8]} 23. Bxc6 {[%clk
0:01:24.9]} 23... Rxd1+ {[%clk 0:01:07.1]} 24. Rxd1 {[%clk 0:01:25.3]} 24...
fxe5 {[%clk 0:01:06]} 25. Bxb7+ {[%clk 0:01:07.1]} 25... Qxb7 {[%clk 0:01:02]}
26. Rd8+ {[%clk 0:01:05.6]} 26... Kxd8 {[%clk 0:00:48.5]} 27. Qxb7 {[%clk
0:01:06]} 27... Rg6 {[%clk 0:00:49.2]} 28. Qb8+ {[%clk 0:01:03.7]} 28... Kd7
{[%clk 0:00:47.4]} 29. Qxa7+ {[%clk 0:01:04.5]} 29... Kd8 {[%clk 0:00:46.9]} 30.
Qb8+ {[%clk 0:01:01.8]} 30... Ke7 {[%clk 0:00:44.5]} 31. c6 {[%clk 0:01:02]}
31... Rg7 {[%clk 0:00:38.5]} 32. c7 {[%clk 0:01:01.7]} 32... Nxc7 {[%clk
0:00:39.2]} 33. Qxc7+ {[%clk 0:01:01.9]} 1-0

[Event "*** Titled Tuesday 3|2 Blitz"]
[Site "Chess.com"]
[Date "2016.06.07"]
[Round "8"]
[White "Winehouse83"]
[Black "Keranke"]
[Result "0-1"]
[WhiteElo "2464"]
[BlackElo "2582"]
[TimeControl "180+2"]
[EndTime "12:37:36 PDT"]
[Termination "Keranke won by resignation"]

1. d4 {[%clk 0:02:39.3]} 1... g6 {[%clk 0:02:58.2]} 2. e4 {[%clk 0:02:38.8]}
2... Bg7 {[%clk 0:02:59.5]} 3. f4 {[%clk 0:02:38.5]} 3... d6 {[%clk 0:03:00.7]}
4. Nc3 {[%clk 0:02:37.3]} 4... a6 {[%clk 0:03:01.2]} 5. e5 {[%clk 0:02:35.1]}
5... Nd7 {[%clk 0:02:54.5]} 6. Nf3 {[%clk 0:02:31]} 6... c5 {[%clk 0:02:53.6]}
7. Be3 {[%clk 0:02:22]} 7... Nh6 {[%clk 0:02:47.7]} 8. dxc5 {[%clk 0:02:09]}
8... Nf5 {[%clk 0:02:23.5]} 9. Bf2 {[%clk 0:02:05.3]} 9... dxe5 {[%clk
0:02:21.3]} 10. fxe5 {[%clk 0:02:06]} 10... O-O {[%clk 0:02:19.3]} 11. e6 {[%clk
0:02:03]} 11... fxe6 {[%clk 0:02:19.8]} 12. Bc4 {[%clk 0:02:03.5]} 12... Qa5
{[%clk 0:02:12]} 13. Bxe6+ {[%clk 0:01:58.8]} 13... Kh8 {[%clk 0:02:13.1]} 14.
O-O {[%clk 0:01:41.4]} 14... Nxc5 {[%clk 0:02:09.7]} 15. Bxc8 {[%clk 0:01:28.3]}
15... Raxc8 {[%clk 0:02:11.6]} 16. Be1 {[%clk 0:01:10.1]} 16... Qb6 {[%clk
0:02:07.4]} 17. Nd5 {[%clk 0:01:02.6]} 17... Qxb2 {[%clk 0:02:08.2]} 18. Rb1
{[%clk 0:00:58.8]} 18... Qxa2 {[%clk 0:02:09.2]} 19. Nb6 {[%clk 0:00:51.3]}
19... Ne3 {[%clk 0:01:54]} 20. Qc1 {[%clk 0:00:48.1]} 20... Nxf1 {[%clk
0:01:54.7]} 21. Nxc8 {[%clk 0:00:47.7]} 21... Rxc8 {[%clk 0:01:53.8]} 22. Kxf1
{[%clk 0:00:46.3]} 22... Nd3 {[%clk 0:01:52.8]} 23. Qd1 {[%clk 0:00:46.6]} 23...
Nxe1 {[%clk 0:01:52.7]} 24. Nxe1 {[%clk 0:00:43]} 24... b5 {[%clk 0:01:53.9]}
25. Rb3 {[%clk 0:00:42]} 25... Qa4 {[%clk 0:01:52.3]} 26. Rd3 {[%clk 0:00:41.2]}
26... Qc4 {[%clk 0:01:43.2]} 27. g3 {[%clk 0:00:32.8]} 27... Bf6 {[%clk
0:01:39.7]} 28. Kg2 {[%clk 0:00:33.5]} 28... Kg7 {[%clk 0:01:40.3]} 29. h4
{[%clk 0:00:34.1]} 29... h5 {[%clk 0:01:38.4]} 30. Qe2 {[%clk 0:00:30.6]} 30...
a5 {[%clk 0:01:36.7]} 31. Qf3 {[%clk 0:00:17]} 31... a4 {[%clk 0:01:35.5]} 32.
Qb7 {[%clk 0:00:18.6]} 32... Qc6+ {[%clk 0:01:35.5]} 33. Qxc6 {[%clk 0:00:18.8]}
33... Rxc6 {[%clk 0:01:37.4]} 34. Kf3 {[%clk 0:00:19.1]} 34... Bb2 {[%clk
0:01:36.4]} 35. Rd5 {[%clk 0:00:15.1]} 35... a3 {[%clk 0:01:35.7]} 0-1

[Event "*** Titled Tuesday 3|2 Blitz"]
[Site "Chess.com"]
[Date "2016.06.07"]
[Round "8"]
[White "OldweakGM"]
[Black "TheLancer"]
[Result "1-0"]
[WhiteElo "2606"]
[BlackElo "2465"]
[TimeControl "180+2"]
[EndTime "12:37:45 PDT"]
[Termination "OldweakGM won by resignation"]

1. Nf3 {[%clk 0:03:01.9]} 1... c5 {[%clk 0:03:01.5]} 2. c4 {[%clk 0:02:55.1]}
2... g6 {[%clk 0:03:02.7]} 3. Nc3 {[%clk 0:02:56.4]} 3... Bg7 {[%clk 0:03:03.9]}
4. g3 {[%clk 0:02:58.3]} 4... Nc6 {[%clk 0:03:04.4]} 5. Bg2 {[%clk 0:02:59.8]}
5... d6 {[%clk 0:03:06.1]} 6. O-O {[%clk 0:03:00.9]} 6... e5 {[%clk 0:03:07.8]}
7. d3 {[%clk 0:03:01.1]} 7... Nge7 {[%clk 0:03:09]} 8. Ne1 {[%clk 0:03:02.1]}
8... Be6 {[%clk 0:03:09.3]} 9. Nc2 {[%clk 0:03:02.9]} 9... d5 {[%clk 0:03:10.6]}
10. cxd5 {[%clk 0:03:04.3]} 10... Nxd5 {[%clk 0:03:12.5]} 11. Ne3 {[%clk
0:03:05.2]} 11... Nde7 {[%clk 0:03:13.5]} 12. Ne4 {[%clk 0:02:55.5]} 12... b6
{[%clk 0:03:10.9]} 13. Ng5 {[%clk 0:02:56.4]} 13... Bc8 {[%clk 0:03:12]} 14. Qa4
{[%clk 0:02:55.2]} 14... Bd7 {[%clk 0:03:02.8]} 15. Qh4 {[%clk 0:02:49.1]} 15...
h6 {[%clk 0:02:45.4]} 16. Ne4 {[%clk 0:02:48.3]} 16... Be6 {[%clk 0:01:59.5]}
17. Nc4 {[%clk 0:02:43.3]} 17... g5 {[%clk 0:01:30.2]} 18. Qh5 {[%clk 0:02:29]}
18... Nd4 {[%clk 0:01:19.4]} 19. Be3 {[%clk 0:02:15.1]} 19... Nef5 {[%clk
0:01:03.6]} 20. h4 {[%clk 0:02:11.4]} 20... gxh4 {[%clk 0:00:36.1]} 21. g4
{[%clk 0:02:12.4]} 21... Nxe2+ {[%clk 0:00:29.2]} 22. Kh2 {[%clk 0:02:12.2]}
22... Nxe3 {[%clk 0:00:18.8]} 23. fxe3 {[%clk 0:02:13.3]} 23... O-O {[%clk
0:00:16.8]} 24. g5 {[%clk 0:01:20.9]} 24... Ng3 {[%clk 0:00:17.5]} 25. Qxh4
{[%clk 0:01:21.7]} 25... Nxf1+ {[%clk 0:00:18.3]} 26. Rxf1 {[%clk 0:01:21.7]}
26... Rc8 {[%clk 0:00:07.1]} 27. Nf6+ {[%clk 0:01:21.4]} 27... Kh8 {[%clk
0:00:04.5]} 28. gxh6 {[%clk 0:01:21.3]} 28... Bxf6 {[%clk 0:00:05.9]} 29. Rxf6
{[%clk 0:01:21.4]} 29... Rg8 {[%clk 0:00:07.1]} 30. Nxe5 {[%clk 0:01:21.1]}
30... Qd6 {[%clk 0:00:07]} 31. Qf4 {[%clk 0:01:17.7]} 31... Rcd8 {[%clk
0:00:08.3]} 32. Rxf7 {[%clk 0:01:17.7]} 32... Qxe5 {[%clk 0:00:03.7]} 33. Qxe5+
{[%clk 0:01:18.3]} 1-0

[Event "*** Titled Tuesday 3|2 Blitz"]
[Site "Chess.com"]
[Date "2016.06.07"]
[Round "8"]
[White "Alexander_Moskalenko"]
[Black "Fandorine"]
[Result "1-0"]
[WhiteElo "2679"]
[BlackElo "2592"]
[TimeControl "180+2"]
[EndTime "12:38:08 PDT"]
[Termination "Alexander_Moskalenko won by resignation"]

1. e4 {[%clk 0:03:01.9]} 1... c6 {[%clk 0:03:00.6]} 2. d4 {[%clk 0:03:00.7]}
2... d5 {[%clk 0:03:02.1]} 3. Nd2 {[%clk 0:03:02.6]} 3... dxe4 {[%clk 0:03:03]}
4. Nxe4 {[%clk 0:03:04.3]} 4... Bf5 {[%clk 0:03:04.6]} 5. Nc5 {[%clk 0:03:05.4]}
5... Nd7 {[%clk 0:03:02.5]} 6. Bd3 {[%clk 0:02:57.1]} 6... Bxd3 {[%clk
0:02:58.3]} 7. Nxd3 {[%clk 0:02:58.1]} 7... Ngf6 {[%clk 0:02:59.2]} 8. Nf3
{[%clk 0:02:58.5]} 8... e6 {[%clk 0:03:00.6]} 9. O-O {[%clk 0:02:58.3]} 9... Bd6
{[%clk 0:03:02.1]} 10. Qe2 {[%clk 0:02:59]} 10... O-O {[%clk 0:03:03.6]} 11. b3
{[%clk 0:03:00.4]} 11... Qc7 {[%clk 0:03:04.2]} 12. Bb2 {[%clk 0:03:00]} 12...
c5 {[%clk 0:03:03.6]} 13. c4 {[%clk 0:03:01.1]} 13... cxd4 {[%clk 0:03:02]} 14.
Bxd4 {[%clk 0:02:59.7]} 14... Rfe8 {[%clk 0:02:55.9]} 15. Nde5 {[%clk
0:02:55.3]} 15... Nxe5 {[%clk 0:02:51.1]} 16. Bxe5 {[%clk 0:02:56.5]} 16... Bxe5
{[%clk 0:02:48.9]} 17. Nxe5 {[%clk 0:02:57.4]} 17... Rad8 {[%clk 0:02:48.9]} 18.
Rfd1 {[%clk 0:02:57.5]} 18... Qc5 {[%clk 0:02:45.3]} 19. g3 {[%clk 0:02:53.6]}
19... h6 {[%clk 0:02:45.7]} 20. Kg2 {[%clk 0:02:53]} 20... a6 {[%clk 0:02:45.7]}
21. f4 {[%clk 0:02:49.5]} 21... b5 {[%clk 0:02:21.7]} 22. h3 {[%clk 0:02:50.5]}
22... bxc4 {[%clk 0:02:17.7]} 23. bxc4 {[%clk 0:02:51.4]} 23... Rd4 {[%clk
0:02:16]} 24. Rxd4 {[%clk 0:02:49.2]} 24... Qxd4 {[%clk 0:02:16.9]} 25. Rd1
{[%clk 0:02:50.3]} 25... Qc5 {[%clk 0:02:18.3]} 26. Qf2 {[%clk 0:02:39.9]} 26...
Qa3 {[%clk 0:02:11.2]} 27. Qc2 {[%clk 0:02:33.6]} 27... Rc8 {[%clk 0:02:06.6]}
28. Rb1 {[%clk 0:02:21]} 28... Nd5 {[%clk 0:01:57.9]} 29. Qb3 {[%clk 0:02:17.5]}
29... Qa5 {[%clk 0:01:35.1]} 30. cxd5 {[%clk 0:02:04.6]} 30... Qd2+ {[%clk
0:01:35.4]} 31. Kf1 {[%clk 0:01:49.3]} 31... Rc3 {[%clk 0:01:16.5]} 32. dxe6
{[%clk 0:01:36.4]} 32... Rxb3 {[%clk 0:01:08]} 33. exf7+ {[%clk 0:01:37.5]}
33... Kf8 {[%clk 0:00:52.9]} 34. Rxb3 {[%clk 0:01:39.4]} 34... Qd1+ {[%clk
0:00:53.1]} 35. Kf2 {[%clk 0:01:40.5]} 35... Qd2+ {[%clk 0:00:50.7]} 36. Kf3
{[%clk 0:01:41.2]} 36... Qd5+ {[%clk 0:00:44.6]} 37. Ke3 {[%clk 0:01:40.3]}
37... Qc5+ {[%clk 0:00:38]} 38. Kd2 {[%clk 0:01:35.3]} 38... Qf2+ {[%clk
0:00:33.2]} 39. Kc3 {[%clk 0:01:29.2]} 39... Qxg3+ {[%clk 0:00:28.5]} 40. Kc4
{[%clk 0:01:25.3]} 40... Qxf4+ {[%clk 0:00:23.1]} 41. Kd5 {[%clk 0:01:26.8]}
41... Qd2+ {[%clk 0:00:16.5]} 42. Ke6 {[%clk 0:01:27.7]} 1-0